Cogmind - Beta 15 @@@ ROGUE MODE // 2025.05.23 @ 10:38:44 Player: Fleshy Vegetable Bird Result: Core destroyed Performance ------------- Evolutions (2) 1000 Regions Visited (3) 600 Robots Destroyed (83) 415 Value Destroyed (2064) 2064 Prototype IDs (15) 300 Alien Tech Used (0) 0 Bonus (3000) 3000 TOTAL SCORE: 7379 Bonus ------- Subatomizer Sterilization 3000 Cogmind --------- Core Integrity 0/550 Matter 1/300 Energy 77/100 System Corruption 9% Temperature Critical (934) Movement Core (50) Location -8/Materials Parts ------- > --- POWER (1) -------- (None) > --- PROPULSION (3) --- (None) > --- UTILITY (4) ------ (None) > --- WEAPON (3) ------- (None) > --- INVENTORY (5) ---- Huge Storage Unit Energy Filter Reactive Plating Relay Coupler [NC] (20) Assault Rifle Peak State ------------ > --- POWER ------------ Nuclear Core Nuclear Core > --- PROPULSION ------- Spiked Treads Armored Treads Wheel Aerolev Unit > --- UTILITY ---------- Medium Storage Unit Advanced Targeting Computer Improved Medium Armor Plating Tower Shield > --- WEAPON ----------- Riot Gun Advanced EMP Blaster Advanced EMP Blaster Heavy Missile Launcher Makeshift Spear > --- INVENTORY -------- Cryofiber Web High-capacity Storage Unit Energy Filter Particle Charger Improved Medium Armor Plating Heavy Missile Launcher Datajack [Rating: 65] Favorites ----------- Power Improved Ion Engine Engine Improved Ion Engine Power Core Nuclear Core Propulsion Wheel Treads Armored Treads Wheel Wheel Hover Unit Aerolev Unit Utility Advanced Targeting Computer Device Improved Terrain Scanner Storage Large Storage Unit Processor Advanced Targeting Computer Protection Improved Light Armor Plating Weapon Grenade Launcher Energy Gun Riot Gun Ballistic Gun Barrage Gun Ballistic Cannon Light Cannon Launcher Grenade Launcher Special Weapon Mining Laser Piercing Weapon Makeshift Spear Build | -11 -10 -10 -8 ------- Run | Yrd Mat Sub Mat Slots Evolved 4 | . . . 4 Power . | . . . . Propulsion 1 | . . . 1 Utility 2 | . . . 2 Weapon 1 | . . . 1 Parts Attached 60 | 7 8 14 31 Power 7 | 1 2 1 3 Engine 4 | 1 2 1 . Core 3 | . . . 3 Reactor . | . . . . Propulsion 15 | 1 2 4 8 Treads 3 | . . . 3 Leg . | . . . . Wheel 11 | 1 2 4 4 Hover 1 | . . . 1 Flight . | . . . . Utility 19 | 2 2 2 13 Device 4 | 1 . . 3 Storage 6 | 1 2 1 2 Processor 1 | . . . 1 Hackware . | . . . . Protection 8 | . . 1 7 Artifact . | . . . . Weapon 19 | 3 2 7 7 Energy Gun 1 | . . . 1 Energy Cannon . | . . . . Ballistic Gun 9 | 3 1 3 2 Ballistic Cannon 1 | . . 1 . Launcher 6 | . . 2 4 Special Weapon 1 | . 1 . . Impact Weapon . | . . . . Slashing Weapon . | . . . . Piercing Weapon 1 | . . 1 . Special Melee Weapon . | . . . . Unidentified Prototypes 2 | . . . 2 Parts Lost 19 | . 1 6 12 Power 1 | . . 1 . Propulsion 7 | . . 3 4 Utility 4 | . . 1 3 Weapon 7 | . 1 1 5 Highest Loss Streak 4 | . 1 2 4 To Critical Strikes . | . . . . Average Backups 11 | 3 8 11 11 Power . | . . . . Propulsion 1 | 2 3 1 . Utility 3 | . . 1 6 Weapon 4 | . 3 6 3 Tool/Special . | . . . . Unused Backups 27 | 2 3 2 20 Power 2 | . . . 2 Propulsion 5 | 2 3 . . Utility 12 | . . . 12 Weapon 7 | . . 2 5 Tool/Special 1 | . . . 1 Average Slot Usage (%) 85 | . 98 89 78 Engine 8 | . 14 11 3 Core 2 | . . . 5 Treads 4 | . . . 9 Wheel 19 | . 27 27 9 Device 2 | . 14 1 . Storage 11 | . 14 14 7 Processor 3 | . . . 8 Protection 6 | . . 5 7 Energy Gun 2 | . . . 6 Ballistic Gun 10 | . 27 9 7 Ballistic Cannon 2 | . . 6 . Launcher 7 | . . 9 6 Piercing Weapon 2 | . . 2 3 Peak Build Rating 65 | 8 10 36 65 Average Rating 26 | 5 9 14 43 On Entrance 13 | . 8 10 36 Naked Turns 11 | . . . 11 Heaviest Build 230 | 13 30 213 230 Greatest Support 40 | 10 20 20 40 Greatest Overweight (x) 22 | 1 1 10 22 Average Overweight (x) 3 | . . 2 8 Largest Inventory Capacity 35 | 8 15 35 35 Average Capacity 21 | 7 11 19 26 Most Carried 35 | 8 11 32 35 Average Carried 16 | 3 8 14 21 Final Capacity 35 | 8 15 35 5 Final Carried 32 | 8 10 32 5 Class Distribution -------------------- 52% | Mutant 20% | Hauler-Mutant 16% | Hauler-Bomber 9% | Bomber Dominant Class ---------------- Mutant | -10/Materials Mutant | -10/Subcaves Hauler-Bomber | -8/Materials Resources | -11 -10 -10 -8 ----------- Run | Yrd Mat Sub Mat Matter Collected 1900 | 259 263 618 760 Remotely . | . . . . Salvage Created 2656 | 190 394 388 1684 Parts 188 | 20 21 31 116 Haulers Intercepted 6 | . 2 . 4 Recyclers Shooed 4 | 1 1 . 2 Parts Field Recycled . | . . . . Retrieved Matter . | . . . . Parts Self-Destructed 25 | . . 25 . Prevented . | . . . . Kills | -11 -10 -10 -8 ------- Run | Yrd Mat Sub Mat Combat Hostiles Destroyed 57 | . 7 19 31 Melee 1 | . . . 1 Guns 32 | . 7 7 18 Cannons 3 | . . 3 . AOE 21 | . . 9 12 Classes Destroyed 13 | 2 3 2 6 Worker 5 | . . . 5 Builder 1 | . . . 1 Tunneler 6 | 5 . . 1 Hauler 6 | . 2 . 4 Recycler 5 | 1 2 . 2 Operator 2 | . . . 2 Watcher 1 | . . . 1 Swarmer 19 | . 6 7 6 Grunt 20 | . 1 2 17 Sentry 7 | . . 1 6 Hunter 1 | . . . 1 Heavy 1 | . . . 1 Subdweller 9 | . . 9 . Best Kill Streak 12 | 2 4 3 12 Combat Bots Only 6 | . 3 3 6 Max Kills in Single Turn 3 | 1 2 2 3 Gunslinging 1 | . 1 1 1 Exploded 3 | . . 2 3 Melee 1 | . . . 1 Uniques/NPCs Destroyed . | . . . . Combat | -11 -10 -10 -8 -------- Run | Yrd Mat Sub Mat Hostile Shots Fired 251 | . 24 69 158 Missed 70 | . 8 21 41 Hits 181 | . 16 48 117 Projectile 181 | . 16 48 117 Critical Strikes 11 | . . 1 10 Damage Taken 4034 | . 182 823 3029 Core 737 | . 28 135 574 Absorbed by Shields . | . . . . Core Remaining (%) 67 | 100 . 34 . Volleys Fired 170 | 17 28 56 69 Largest 3 | 2 2 2 3 Hottest 111 | 40 100 60 111 Shots Fired 323 | 24 55 81 163 Gun 255 | 24 54 37 140 Cannon 14 | . . 14 . Launcher 53 | . . 30 23 Special 1 | . 1 . . Kinetic 217 | 24 54 51 88 Thermal 1 | . 1 . . Explosive 45 | . . 30 15 Electromagnetic 60 | . . . 60 Robot Hit Streak 21 | 10 11 21 13 Robot Miss Streak 5 | 2 2 2 5 Penetration Max . | . . . . Secondary Targets 8 | . 2 1 5 Max Gunslinging Chain 1 | . 1 1 1 Shots Hit Robots 222 | 16 37 47 122 Core Hits 137 | 7 16 31 83 Critical Kills . | . . . . Critical Parts Destroyed . | . . . . Critical Strikes 2 | . . . 2 Impale 2 | . . . 2 Melee Attacks 22 | . . 1 21 Impact . | . . . . Slashing . | . . . . Piercing 22 | . . 1 21 Sneak Attacks 8 | . . . 8 Combat Hostiles . | . . . . Follow-up Attacks . | . . . . Damage Inflicted 6366 | 177 477 1504 4208 Guns 2922 | 177 477 376 1892 Cannons 177 | . . 177 . Explosions 2569 | . . 951 1618 Melee 679 | . . . 679 Ramming 19 | . . . 19 Kinetic 2412 | 177 477 553 1205 Thermal 183 | . . . 183 Explosive 2065 | . . 951 1114 Electromagnetic 1008 | . . . 1008 Impact . | . . . . Slashing . | . . . . Piercing 679 | . . . 679 Highest Corruption 9 | . . . 9 Average Corruption 5 | . . . 5 Corruption Purged . | . . . . Corruption Blocked . | . . . . Effects 23 | . . . 23 Message Errors 5 | . . . 5 Matter Fused 7 | . . . 7 Heat Flow Errors 3 | . . . 3 Energy Discharges 2 | . . . 2 Data Loss (minor) 2 | . . . 2 Data Loss (major) 1 | . . . 1 Misfires 1 | . . . 1 Alerts 2 | . . . 2 Overload Shots . | . . . . Overflow Damage 71 | . . . 71 Projectiles . | . . . . Explosions 3 | . . . 3 Melee 68 | . . . 68 Knockbacks . | . . . . Impact . | . . . . Kinetic . | . . . . Secondary . | . . . . Self-Inflicted Damage 115 | . . 17 98 Shots 7 | . . 2 5 Rammed 1 | . . . 1 Targets Rammed 1 | . . . 1 Kicked . | . . . . Crushed . | . . . . Highest Temperature 934 | . 20 . 934 Average Temperature 204 | . 12 . 205 Received Heat Transfer 957 | . 36 165 756 Effects 26 | . . . 26 Energy Bleed 7 | . . . 7 Interference 4 | . . . 4 Matter Decay 6 | . . . 6 Short Circuit 2 | . . . 2 Damage (minor) 3 | . . . 3 Damage (core) 4 | . . . 4 Siege Activations . | . . . . Martial Activations . | . . . . Shielding Activations . | . . . . Robots Disrupted . | . . . . Combat Hostiles . | . . . . Robots Corrupted . | . . . . Combat Hostiles . | . . . . Parts Fried 1 | . . . 1 Impact Corruptions . | . . . . Robots Melted . | . . . . Combat Hostiles . | . . . . Parts Melted . | . . . . Heat Transferred 100 | . . . 100 Parts Sabotaged . | . . . . Parts Stolen . | . . . . Parts Stripped . | . . . . Power Chain Reactions 4 | . . . 4 Alert | -11 -10 -10 -8 ------- Run | Yrd Mat Sub Mat Maximum Alert Level 1 | . . . 1 Low Security (%) 68 | 100 100 . 61 Level 1 31 | . . . 38 Level 2 . | . . . . Level 3 . | . . . . Level 4 . | . . . . Level 5 . | . . . . High Security . | . . . . Max Security . | . . . . Sterilizations 1 | . . . 1 Peak Influence 303 | 10 72 . 303 Initial 27 | . . . 27 Average 124 | 2 19 . 150 Influence Increases 1682 | 30 244 370 1038 Destroy 0b10 Robot/C 960 | . 140 200 620 Destroy 0b10 Robot/NC 130 | 30 20 . 80 Destroy Leader 204 | . 24 20 160 Successful Hack 53 | . 29 . 24 Disable Machine 30 | . . . 30 Destroy Structure 110 | . 1 . 109 Lose Combat Pursuer 195 | . 30 150 15 Influence Decreases 1427 | 30 244 317 836 Entered New Map 26 | . . . 26 Time Decay 1239 | 30 240 279 690 Lost Part 162 | . 4 38 120 Squads Dispatched 5 | . . . 5 Investigation 1 | . . . 1 Extermination . | . . . . Reinforcement 4 | . . . 4 Assault . | . . . . Garrison . | . . . . Intercept . | . . . . Searches Triggered . | . . . . Construction Impeded 1 | . . . 1 Haulers Reinforced . | . . . . Active Scanning Responses . | . . . . Cargo Convoy Interrupts . | . . . . Stealth | -11 -10 -10 -8 --------- Run | Yrd Mat Sub Mat Distress Signals 7 | . 2 . 5 Communications Jammed . | . . . . Distress Signals . | . . . . Times Spotted 79 | . 12 21 46 Peak Tracking Total 6 | . 5 3 6 Tactical Retreats 6 | . 1 4 1 Traps | -11 -10 -10 -8 ------- Run | Yrd Mat Sub Mat Traps Triggered 6 | . 2 2 2 Indirectly . | . . . . Trap Hack Attempts . | . . . . Triggered . | . . . . Disarmed . | . . . . Reprogrammed . | . . . . Reused . | . . . . Traps Extracted . | . . . . Installed . | . . . . Triggered . | . . . . Machines | -11 -10 -10 -8 ---------- Run | Yrd Mat Sub Mat Machines Disabled 3 | . . 1 2 Max in Single Turn 1 | . . 1 1 Garrison Access 1 | . . . 1 Machines Repaired . | . . . . Machines Dismantled . | . . . . Machines Sabotaged . | . . . . Overloaded Fab Kills . | . . . . Hacking | -11 -10 -10 -8 --------- Run | Yrd Mat Sub Mat Machines Accessed 13 | . 6 3 4 Terminals 9 | . 6 . 3 Fabricators . | . . . . Repair Stations . | . . . . Recycling Units . | . . . . Scanalyzers 1 | . . . 1 Garrison Access . | . . . . Total Hacks 41 | . 19 4 18 Successful 25 | . 12 4 9 Failed 16 | . 7 . 9 Catastrophic 3 | . . . 3 Database Lockouts . | . . . . Manual 30 | . 18 . 12 Terminals 35 | . 19 . 16 Fabricators . | . . . . Repair Stations . | . . . . Recycling Units . | . . . . Scanalyzers 2 | . . . 2 Garrison Access . | . . . . Terminal Hacks 12 | . 5 4 3 Record 1 | . . 1 . Part Schematic 2 | . 1 . 1 Robot Analysis 2 | . 2 . . Prototype ID Bank 1 | . 1 . . Open Door 1 | . . 1 . Terminal Index 2 | . 1 . 1 Registered Components 1 | . . . 1 Proto ID Catalog 1 | . . 1 . Release Object 1 | . . 1 . Fabricator Hacks . | . . . . Repair Station Hacks . | . . . . Recycling Unit Hacks . | . . . . Scanalyzer 2 | . . . 2 Insert Component 1 | . . . 1 Analyze 1 | . . . 1 Garrison Access Hacks . | . . . . Unauthorized Hacks 11 | . 7 . 4 Terminals 11 | . 7 . 4 Track 1 | . 1 . . Botnet 8 | . 5 . 3 Operators 2 | . 1 . 1 Fabricators . | . . . . Repair Stations . | . . . . Recycling Units . | . . . . Scanalyzers . | . . . . Garrison Access . | . . . . Data Cores Recovered . | . . . . Used . | . . . . Hacking Detections 9 | . 6 . 3 Full Trace Events 1 | . . . 1 Feedback Events . | . . . . Feedback Blocked . | . . . . Robot Schematics Acquired . | . . . . Robots Built . | . . . . Authchips . | . . . . Time . | . . . . Total Robot Build Rating . | . . . . Part Schematics Acquired 2 | . 1 . 1 Parts Built . | . . . . Authchips . | . . . . Time . | . . . . Total Part Build Rating . | . . . . Parts Repaired . | . . . . Time . | . . . . Parts Recycled . | . . . . Recycled Matter . | . . . . Retrieved Matter . | . . . . Retrieved Components . | . . . . Parts Scanalyzed 1 | . . . 1 Part Schematics Acquired 1 | . . . 1 Parts Damaged . | . . . . Bothacking | -11 -10 -10 -8 ------------ Run | Yrd Mat Sub Mat Used RIF Installer . | . . . . Robots Hacked . | . . . . Non-combat . | . . . . Combat . | . . . . Robot Hacks Applied . | . . . . Relay Couplers Released 3 | . . . 3 Machine Destruction 3 | . . . 3 Fabnet Peak Effective % . | . . . . Robots Rewired . | . . . . Allies Hacked . | . . . . Hacks Repelled . | . . . . Allies | -11 -10 -10 -8 -------- Run | Yrd Mat Sub Mat Total Allies . | . . . . Largest Group . | . . . . Highest-Rated Group . | . . . . Highest-Rated Ally . | . . . . Total Orders . | . . . . Ally Attacks . | . . . . Total Damage . | . . . . Kills . | . . . . Allies Corrupted . | . . . . Allies Melted . | . . . . Intel | -11 -10 -10 -8 ------- Run | Yrd Mat Sub Mat Active Infowar (turns) 1001 | 9 630 307 55 Optics 55 | . . . 55 Terrain 946 | 9 630 307 . Robot Analysis Total 2 | . 2 . . Derelict Logs Recovered 1 | . . 1 . Drone Launches . | . . . . Drone Recoveries . | . . . . Exploration | -11 -10 -10 -8 ------------- Run | Yrd Mat Sub Mat Turns Passed 7430 | 123 630 3436 3241 Spaces Moved 4303 | 74 478 2672 1079 Core 35 | 8 . . 27 Treads 326 | . . . 326 Legs . | . . . . Wheels 3942 | 66 478 2672 726 Hover . | . . . . Flight . | . . . . Fastest Speed 50 | 50 80 95 50 Average Speed 146 | 78 89 112 260 Slowest Speed 1050 | 95 95 230 1050 Overloaded Moves . | . . . . Propulsion Burnouts . | . . . . Robots Hopped . | . . . . Potential Cave-ins 1 | . . 1 . Cave-ins Triggered 1 | . . . 1 Exploration Rate (%) 66 | 5 80 94 87 Regions Visited 3 Branch Regions 1 Pre-discovered Areas 1 | . . 1 . Known Exits Taken . | . . . . Unknown Exits Taken 3 | 1 1 1 . Scrap Searched 5 | . . 5 . Spaces Dug 36 | . 1 19 16 Terrain Destroyed 313 | . 1 159 153 Melee 1 | . . . 1 Projectile 2 | . 1 . 1 AOE 310 | . . 159 151 Terrain Rammed . | . . . . Walls Destroyed . | . . . . Machines Disabled . | . . . . Actions | -11 -10 -10 -8 --------- Run | Yrd Mat Sub Mat Total 5131 | 117 628 3027 1359 Wait 376 | . 90 227 59 Move 4300 | 73 477 2671 1079 Hop . | . . . . Pick Up 122 | 17 15 33 57 Fast Attach . | . . . . Attach 44 | 6 5 7 26 Detach . | . . . . Swap 32 | 1 5 10 16 Drop 63 | 3 8 22 30 Fire 170 | 17 28 56 69 Melee 22 | . . 1 21 Ram 1 | . . . 1 Kick . | . . . . Crush . | . . . . Escape Stasis . | . . . . Rewire . | . . . . Trap . | . . . . Miscellaneous 1 | . . . 1 Route ------- -11/Scrapyard -10/Materials (discovered 3 exits: [*Mat x2] / *Sub) -10/Subcaves (discovered 3 exits: *Mat x2 / *Rec) -8/Materials (discovered 3 exits: [*Fac x3]) History --------- Turn | Location | Event 37 | -11/Scrapyard | Discovered new exit (range 16) 124 | -11/Scrapyard | Entered Materials 308 | -10/Materials | Build established: Mutant 329 | -10/Materials | Discovered new exit (range 12) 497 | -10/Materials | Discovered new exit (range 12) 747 | -10/Materials | Discovered new exit (range 10) 754 | -10/Materials | Entered Subcaves 946 | -10/Subcaves | Learned location of Zion (-6) 946 | -10/Subcaves | Met a Zionite searching for "candidates" 1004 | -10/Subcaves | Ambushed by Subdweller buried in earth 1214 | -10/Subcaves | A swath of the cavern ceiling suddenly collapsed 1296 | -10/Subcaves | Discovered new exit (range 14) 1381 | -10/Subcaves | Identified exit to Recycling 1578 | -10/Subcaves | Discovered new exit (range 10) 1710 | -10/Subcaves | Disturbed a concealed Subdweller 1818 | -10/Subcaves | Core integrity fell below 50% 2830 | -10/Subcaves | Visited 4L-MR0's lab 2918 | -10/Subcaves | Shifting Twisted Machinery released Hvy. Battle Rifle 2968 | -10/Subcaves | Shifting Twisted Machinery released Barrage Gun 3507 | -10/Subcaves | Found Tower Shield 3653 | -10/Subcaves | Build established: Hauler-Mutant 3759 | -10/Subcaves | Found SUBCON Basin 4052 | -10/Subcaves | Shifting Twisted Machinery released Battle Rifle 4058 | -10/Subcaves | Shifting Twisted Machinery released Battle Rifle 4190 | -10/Subcaves | Entered Materials 4190 | -8/Materials | Evolved 4 slots: Propulsion x1, Utility x2, Weapon x1 4529 | -8/Materials | Build established: Hauler-Bomber 4803 | -8/Materials | Discovered new exit (range 13) 5671 | -8/Materials | Build established: Hauler-Mutant 6033 | -8/Materials | Released subatomizers from SUBCON Basin 6050 | -8/Materials | Build established: Hauler-Bomber 6196 | -8/Materials | Attached Tower Shield, gained temporary slots: Power, Propulsion x2, Utility x2, Weapon x2 6217 | -8/Materials | Lost 4 parts (1n2u1w) 6318 | -8/Materials | Discovered new exit (range 15) 6475 | -8/Materials | Build established: Bomber 6646 | -8/Materials | Sterilization system engaged 6646 | -8/Materials | Non-combat units ordered to evacuate 6746 | -8/Materials | Combat units ordered to evacuate 6769 | -8/Materials | Discovered new exit (range 16) 6908 | -8/Materials | Crushed by falling debris 6946 | -8/Materials | Ambient heat levels rising (+10) 7096 | -8/Materials | Ambient heat levels rising (+10) 7118 | -8/Materials | Build established: Mutant 7246 | -8/Materials | Ambient heat levels rising (+10) 7396 | -8/Materials | Ambient heat levels rising (+10) 7409 | -8/Materials | Core integrity fell below 50% 7421 | -8/Materials | Released all parts (5) 7431 | -8/Materials | Core integrity fell below 20% 7432 | -8/Materials | Core destroyed Last Messages --------------- 07417_ Overheating: Energy bleed (-38). 07418_ Dropped Broken Spk. Treads. 07419_ Overheating: Core damaged (-66). 07419_ Dropped Broken Arm. Treads. 07419_ Dropped Nuclear Core. 07420_ Relay Coupler [NC] fries itself. 07421_ System corrupted: Heat flow error (+211). 07421_ Released Hvy. Missile Launcher. 07421_ Released Adv. Targeting Computer. 07421_ Released Hcp. Storage Unit. 07421_ Released Cryofiber Web. Particle Charger melts. Hvy. Missile Launcher melts. Nuclear Core melts. Relay Coupler [Sentry] melts. Imp. Terrain Scan Processor melts. Datajack melts. 07427_ Overheating: Energy bleed (-21). 07430_ Overheating: Energy bleed (-17). 07431_ Overheating: Core damaged (-99). Map ----- +----------------------------------------------------+ | | | | | | | | | | | | | ?????????????????????????????????????#?####??????? | | ?????????????????????????????????????" ####### | | ?????????????????????????????????????"" # | | ??????????????????????????????????????" #?"" " | | ?????????????????????????????????????? #? " | | ???????????????????????????????????????= #??"" " | | ???????????????????????????#####???????? #?? | | ???????????##########??????# ########## #??##### | | ??????????## #??????# < ####### | | ??????????#" #?###??# + | | ??????????#" ### #### ###### | | ??????????#" ##???## | | ???????????# #??### | | ???????????# # ##### | | ???????????# # | | ???????????# | | ???????????# # ### | | ????######### #### ## # ########## #?## | | ????# #### # #####??# #?? | | ????# #?# @ ;;;;;#### #??%" | | ????# " #?# # # #?%%" | | ????# #?# # ## # #?%"" | | ????# #?####### # #%%"% | | ########### ########### # %# # #%%"" | | # ## # #%%%" | | !!] ! # #"??" | | ==! ^ # "??? | | ] # "#### | | # ### % ##### """ | | ## % % #???## """"""####"""""### | | ## %%% #????##### # ###???? ?# | | ## %% % #????????#####?????# """ + | | ## "%% % #??????????????????# """ ## | | ## %%%%%% #??????????????????# """ #? | | ######## %%%"% #??????????????????# #? | | ?# # #??????????????????# !#? | | ## ! # % #??????????????????######### | | ##= # %%%%%^ #???????????????????????#? | | #? ! # %%%%%% #???????????????????????# "" | | #? # %%%%% #???????????????????????# " | | #?? # ""%%%% #???????????????????????# "" | | ##? # %%%"%" #????????????########???# "" | | ###+## "%%%" #????????????# ]!!#???# | | %%"%" #????????????# !!#???? | +----------------------------------------------------+ Best States ------------- Heat Dissipation 31 Energy Generation 23 Energy Capacity 380 Matter Stores 300 Matter Capacity 300 Sight Range 21 Terrain Scan Range 16 Terrain Scan Density 10 Base Temperature (-) 100 Armor Coverage 2450 Evasion (%) 50 Targeting Accuracy 8 Recoil Reduction 2 Energy Filtering 30 Item Schematics ----------------- Huge Storage Unit | -10/Materials | Hacked Particle Charger | -8/Materials | Scanalyzed Robot Schematics ------------------ None Fabricated ------------ Nothing Repaired ---------- Nothing Alien Tech Used ----------------- None Achievements -------------- None Challenges ------------ None Game ------ Seed ThunderPlexusOptics Manual? 0 Play Time 00:46:14 Cumulative 350.3 hours Start 2025.05.23 @ 09:45:30 End 2025.05.23 @ 10:38:44 Sessions 1 Manual Loads 0 Difficulty Rogue Special Mode None Game No. 395 Rogue 395 Adventurer 0 Explorer 0 Win Type - Total 6 Types 3/1/1/1/0/0/0/0/0/0 Lore% 56 Gallery% 68 Achievement% 68 Wizard Run 0 Options --------- Layout 1 ASCII 0 Keyboard 0 Movement Numpad Keybinds 0 Fullscreen 1 Font 32/SmallcapsGlow Map View 50x35 Zoom Use 0% Tactical HUD 1 Map Filters NONE Filters NONE Steam 1 RUN: 1bae7922-db0b-4d9a-a7f4-4e471dbc3206